[Event "Masterklassen-Elit 2025"]
[Site "Uppsala, Sweden"]
[Date "2025.07.01"]
[Round "4.3"]
[White "Landgren, Andreas"]
[Black "Wiedenkeller, Michael"]
[Result "0-1"]
[TimeControl "90 min for 40 move + 30 min with an increment of 30 sec starting move 1"]
[WhiteTitle "FM"]
[BlackTitle "IM"]
[WhiteFideId "1704311"]
[BlackFideId "1700146"]
[WhiteElo "2261"]
[BlackElo "2384"]

1. e4 {[%clk 01:30:58]} {[%emt 00:00:01]} e5 {[%clk 01:30:23]} {[%emt
00:00:36]} 2. Nf3 {[%clk 01:31:20]} {[%emt 00:00:09]} Nc6 {[%clk 01:30:46]}
{[%emt 00:00:07]} 3. Bb5 {[%clk 01:31:43]} {[%emt 00:00:07]} a6 {[%clk
01:30:31]} {[%emt 00:00:45]} 4. Ba4 {[%clk 01:32:06]} {[%emt 00:00:06]} Nf6
{[%clk 01:30:40]} {[%emt 00:00:21]} 5. O-O {[%clk 01:32:26]} {[%emt 00:00:10]}
Bc5 {[%clk 01:30:31]} {[%emt 00:00:40]} 6. c3 {[%clk 01:13:26]} {[%emt
00:19:30]} b5 {[%clk 01:30:26]} {[%emt 00:00:35]} 7. Bb3 {[%clk 01:12:33]}
{[%emt 00:01:23]} d6 {[%clk 01:30:36]} {[%emt 00:00:20]} 8. d4 {[%clk
01:12:57]} {[%emt 00:00:07]} Bb6 {[%clk 01:30:38]} {[%emt 00:00:27]} 9. Be3
{[%clk 01:12:21]} {[%emt 00:01:05]} O-O {[%clk 01:23:16]} {[%emt 00:07:52]} 10.
Nbd2 {[%clk 01:12:07]} {[%emt 00:00:45]} h6 {[%clk 01:19:44]} {[%emt 00:04:01]}
11. h3 {[%clk 01:12:18]} {[%emt 00:00:19]} Re8 {[%clk 01:17:55]} {[%emt
00:02:19]} 12. Re1 {[%clk 01:07:13]} {[%emt 00:05:35]} Bb7 {[%clk 01:09:45]}
{[%emt 00:08:41]} 13. d5 {[%clk 01:04:10]} {[%emt 00:03:32]} Ne7 {[%clk
01:07:02]} {[%emt 00:03:13]} 14. Bxb6 {[%clk 01:04:28]} {[%emt 00:00:13]} cxb6
{[%clk 01:07:30]} {[%emt 00:00:02]} 15. a4 {[%clk 00:55:29]} {[%emt 00:09:28]}
bxa4 {[%clk 01:03:25]} {[%emt 00:04:36]} 16. Bxa4 {[%clk 00:55:49]} {[%emt
00:00:10]} Rf8 {[%clk 00:59:53]} {[%emt 00:04:01]} 17. b4 {[%clk 00:54:44]}
{[%emt 00:01:35]} Ng6 {[%clk 00:58:40]} {[%emt 00:01:44]} 18. c4 {[%clk
00:53:34]} {[%emt 00:01:40]} Rc8 {[%clk 00:54:52]} {[%emt 00:04:18]} 19. Rc1
{[%clk 00:46:40]} {[%emt 00:07:23]} Nf4 {[%clk 00:42:32]} {[%emt 00:12:50]} 20.
Re3 {[%clk 00:45:38]} {[%emt 00:01:33]} Qe7 {[%clk 00:27:34]} {[%emt 00:15:28]}
21. Rec3 {[%clk 00:23:08]} {[%emt 00:23:00]} Rc7 {[%clk 00:20:22]} {[%emt
00:07:42]} 22. Qe1 {[%clk 00:20:37]} {[%emt 00:03:01]} Rfc8 {[%clk 00:20:28]}
{[%emt 00:00:23]} 23. Qe3 {[%clk 00:06:16]} {[%emt 00:14:52]} Bxd5 {[%clk
00:15:25]} {[%emt 00:05:33]} 24. g3 {[%clk 00:03:41]} {[%emt 00:03:05]} Nxh3+
{[%clk 00:14:39]} {[%emt 00:01:16]} 25. Kg2 {[%clk 00:04:06]} {[%emt 00:00:04]}
Be6 {[%clk 00:13:42]} {[%emt 00:01:27]} 26. Qxb6 {[%clk 00:04:06]} {[%emt
00:00:32]} Rb7 {[%clk 00:10:38]} {[%emt 00:03:34]} 27. Qa5 {[%clk 00:02:41]}
{[%emt 00:01:55]} Nh7 {[%clk 00:04:33]} {[%emt 00:06:34]} 28. c5 {[%clk
00:02:27]} {[%emt 00:00:44]} dxc5 {[%clk 00:04:36]} {[%emt 00:00:27]} 29. Rxc5
{[%clk 00:02:18]} {[%emt 00:00:39]} Rxc5 {[%clk 00:03:00]} {[%emt 00:02:06]} 30.
bxc5 {[%clk 00:02:39]} {[%emt 00:00:09]} Rc7 {[%clk 00:02:13]} {[%emt
00:01:17]} 31. c6 {[%clk 00:02:52]} {[%emt 00:00:18]} N7g5 {[%clk 00:01:50]}
{[%emt 00:00:52]} 32. Nxg5 {[%clk 00:02:26]} {[%emt 00:00:55]} Nxg5 {[%clk
00:02:16]} {[%emt 00:00:04]} 33. Qxe5 {[%clk 00:02:37]} {[%emt 00:00:19]} Bh3+
{[%emt 00:00:09]} 0-1

[Event "Masterklassen-Elit 2025"]
[Site "Uppsala, Sweden"]
[Date "2025.07.01"]
[Round "4.4"]
[White "Ljung, Harald"]
[Black "Strom-Engdahl, Alexander"]
[Result "0-1"]
[TimeControl "90 min for 40 move + 30 min with an increment of 30 sec starting move 1"]
[BlackTitle "FM"]
[WhiteFideId "1738178"]
[BlackFideId "1741586"]
[WhiteElo "2194"]
[BlackElo "2320"]

1. d4 {[%clk 01:30:58]} {[%emt 00:00:02]} d5 {[%clk 01:29:58]} {[%emt
00:01:02]} 2. Nf3 {[%clk 01:31:12]} {[%emt 00:00:15]} Nf6 {[%clk 01:30:20]}
{[%emt 00:00:09]} 3. e3 {[%clk 01:31:15]} {[%emt 00:00:28]} Bf5 {[%clk
01:30:32]} {[%emt 00:00:17]} 4. Be2 {[%clk 01:31:28]} {[%emt 00:00:17]} e6
{[%clk 01:29:34]} {[%emt 00:01:28]} 5. O-O {[%clk 01:31:49]} {[%emt 00:00:08]}
h6 {[%clk 01:28:22]} {[%emt 00:01:42]} 6. c4 {[%clk 01:31:47]} {[%emt
00:00:32]} c6 {[%clk 01:28:32]} {[%emt 00:00:21]} 7. Nc3 {[%clk 01:32:08]}
{[%emt 00:00:09]} Be7 {[%clk 01:27:19]} {[%emt 00:01:43]} 8. b3 {[%clk
01:27:20]} {[%emt 00:05:17]} O-O {[%clk 01:27:12]} {[%emt 00:00:38]} 9. Bb2
{[%clk 01:27:24]} {[%emt 00:00:25]} Nbd7 {[%clk 01:24:45]} {[%emt 00:02:56]} 10.
h3 {[%clk 01:26:43]} {[%emt 00:01:13]} Re8 {[%clk 01:20:51]} {[%emt 00:04:23]}
11. Rc1 {[%clk 01:14:21]} {[%emt 00:12:53]} Ne4 {[%clk 01:14:43]} {[%emt
00:06:36]} 12. Ne1 {[%clk 01:07:21]} {[%emt 00:07:31]} Bd6 {[%clk 01:08:15]}
{[%emt 00:06:58]} 13. Bd3 {[%clk 00:57:21]} {[%emt 00:10:30]} Ndf6 {[%clk
01:00:04]} {[%emt 00:08:40]} 14. Qc2 {[%clk 00:51:28]} {[%emt 00:06:25]} Nxc3
{[%clk 00:58:25]} {[%emt 00:02:08]} 15. Bxc3 {[%clk 00:50:29]} {[%emt
00:01:29]} Ne4 {[%clk 00:57:54]} {[%emt 00:01:01]} 16. g4 {[%clk 00:42:28]}
{[%emt 00:08:30]} Bg6 {[%clk 00:44:00]} {[%emt 00:14:25]} 17. Ng2 {[%clk
00:31:02]} {[%emt 00:11:56]} Qf6 {[%clk 00:33:29]} {[%emt 00:11:01]} 18. f4
{[%clk 00:24:10]} Ng3 {[%clk 00:29:23]} {[%emt 00:11:58]} 19. Rf3 {[%clk
00:18:27]} Bxd3 {[%clk 00:29:17]} {[%emt 00:06:49]} 20. Qxd3 {[%clk 00:18:52]}
Ne4 {[%clk 00:29:37]} {[%emt 00:00:15]} 21. Rcf1 {[%clk 00:18:29]} Rf8 {[%clk
00:26:52]} {[%emt 00:04:08]} 22. Be1 {[%clk 00:18:50]} Qe7 {[%clk 00:25:24]}
{[%emt 00:02:08]} 23. Bh4 {[%clk 00:18:22]} f6 {[%clk 00:24:14]} {[%emt
00:02:38]} 24. f5 {[%clk 00:17:00]} {[%emt 00:01:52]} Rad8 {[%clk 00:22:24]}
{[%emt 00:02:20]} 25. Be1 {[%clk 00:17:12]} {[%emt 00:00:18]} Ng5 {[%clk
00:21:03]} {[%emt 00:01:51]} 26. Nh4 {[%clk 00:17:03]} {[%emt 00:00:37]} Nxf3+
{[%clk 00:19:33]} {[%emt 00:02:02]} 27. Rxf3 {[%clk 00:17:20]} {[%emt
00:00:12]} Rfe8 {[%clk 00:19:39]} {[%emt 00:00:24]} 28. fxe6 {[%clk 00:16:46]}
{[%emt 00:01:04]} Qxe6 {[%clk 00:19:31]} {[%emt 00:00:39]} 29. Nf5 {[%clk
00:16:25]} {[%emt 00:00:51]} Qe4 {[%clk 00:17:50]} {[%emt 00:02:11]} 30. Qxe4
{[%clk 00:15:09]} {[%emt 00:01:46]} Rxe4 {[%clk 00:17:30]} {[%emt 00:00:50]} 31.
Bg3 {[%clk 00:14:53]} {[%emt 00:00:47]} Bxg3 {[%clk 00:17:24]} {[%emt
00:00:35]} 32. Nxg3 {[%clk 00:15:11]} {[%emt 00:00:11]} Ree8 {[%clk 00:17:17]}
{[%emt 00:00:37]} 33. Kf2 {[%clk 00:13:33]} {[%emt 00:02:08]} c5 {[%clk
00:16:04]} {[%emt 00:01:44]} 34. Nf5 {[%clk 00:10:56]} {[%emt 00:03:06]} cxd4
{[%clk 00:15:50]} {[%emt 00:00:44]} 35. exd4 {[%clk 00:11:13]} {[%emt
00:00:14]} dxc4 {[%clk 00:16:12]} {[%emt 00:00:08]} 36. bxc4 {[%clk 00:11:32]}
{[%emt 00:00:11]} g6 {[%clk 00:11:56]} {[%emt 00:04:46]} 37. Ne3 {[%clk
00:11:53]} {[%emt 00:00:08]} Rxd4 {[%clk 00:11:54]} {[%emt 00:00:33]} 38. h4
{[%clk 00:10:40]} {[%emt 00:01:42]} Rd2+ {[%clk 00:11:30]} {[%emt 00:00:54]} 39.
Kg3 {[%clk 00:10:45]} {[%emt 00:00:25]} Rd3 {[%clk 00:11:35]} {[%emt 00:00:23]}
40. Kf2 {[%clk 00:11:12]} {[%emt 00:00:06]} Ra3 {[%clk 00:11:46]} {[%emt
00:00:13]} 0-1

[Event "Masterklassen-Elit 2025"]
[Site "Uppsala, Sweden"]
[Date "2025.07.01"]
[Round "4.5"]
[White "Lindberg, Bengt"]
[Black "Ostlund, Joar"]
[Result "0-1"]
[TimeControl "90 min for 40 move + 30 min with an increment of 30 sec starting move 1"]
[WhiteTitle "IM"]
[BlackTitle "FM"]
[WhiteFideId "1700359"]
[BlackFideId "1735020"]
[WhiteElo "2334"]
[BlackElo "2322"]

1. e4 {[%clk 01:30:56]} {[%emt 00:00:04]} c5 {[%clk 01:28:22]} {[%emt
00:02:39]} 2. Nf3 {[%clk 01:31:03]} {[%emt 00:00:22]} Nc6 {[%clk 01:28:46]}
{[%emt 00:00:07]} 3. Bb5 {[%clk 01:31:00]} {[%emt 00:00:33]} g6 {[%clk
01:29:00]} {[%emt 00:00:15]} 4. O-O {[%clk 01:30:58]} {[%emt 00:00:32]} Bg7
{[%clk 01:29:23]} {[%emt 00:00:08]} 5. c3 {[%clk 01:30:54]} {[%emt 00:00:33]}
Nf6 {[%clk 01:29:11]} {[%emt 00:00:43]} 6. Re1 {[%clk 01:30:21]} {[%emt
00:01:03]} O-O {[%clk 01:29:20]} {[%emt 00:00:21]} 7. h3 {[%clk 01:29:37]}
{[%emt 00:01:13]} a6 {[%clk 01:15:24]} {[%emt 00:14:27]} 8. Bf1 {[%clk
01:29:13]} {[%emt 00:00:53]} e5 {[%emt 00:11:11]} 9. d3 {[%emt 00:05:43]} d5
{[%clk 01:06:06]} {[%emt 00:00:10]} 10. Nbd2 {[%clk 01:08:47]} {[%emt
00:04:15]} Re8 11. a3 {[%emt 00:16:39]} h6 {[%clk 00:54:57]} {[%emt 00:06:26]}
12. b4 {[%clk 01:06:54]} cxb4 {[%clk 00:54:17]} {[%emt 00:03:33]} 13. axb4
{[%clk 01:00:39]} {[%emt 00:05:39]} Be6 14. Bb2 {[%clk 00:55:03]} {[%emt
00:05:42]} Qc7 15. Qb1 {[%clk 00:49:40]} {[%emt 00:07:42]} Rad8 16. exd5 {[%emt
00:07:01]} Nxd5 {[%clk 00:48:29]} {[%emt 00:00:57]} 17. Ne4 {[%emt 00:11:06]}
f5 {[%clk 00:37:52]} {[%emt 00:00:16]} 18. Nc5 {[%clk 00:43:07]} {[%emt
00:01:37]} Bc8 19. Qa2 {[%emt 00:08:27]} Kh8 {[%emt 00:00:32]} 20. Qb3 {[%clk
00:43:20]} {[%emt 00:00:13]} g5 {[%clk 00:35:39]} {[%emt 00:01:00]} 21. b5
{[%clk 00:37:00]} {[%emt 00:06:51]} axb5 {[%clk 00:32:17]} {[%emt 00:03:51]} 22.
Qxb5 {[%emt 00:00:40]} Bf6 {[%clk 00:31:58]} {[%emt 00:00:46]} 23. c4 {[%clk
00:30:44]} {[%emt 00:06:38]} Nf4 {[%clk 00:31:04]} {[%emt 00:01:25]} 24. g3
{[%clk 00:27:19]} {[%emt 00:03:54]} Ng6 {[%clk 00:19:56]} {[%emt 00:11:39]} 25.
Ra8 {[%clk 00:26:36]} {[%emt 00:01:14]} h5 {[%clk 00:18:45]} {[%emt 00:01:41]}
26. d4 {[%clk 00:19:22]} {[%emt 00:07:43]} e4 {[%clk 00:16:28]} {[%emt
00:02:47]} 27. d5 {[%emt 00:04:08]} Nce5 28. Nxe5 {[%clk 00:16:11]} {[%emt
00:01:34]} Nxe5 {[%clk 00:15:28]} {[%emt 00:00:29]} 29. Bg2 {[%clk 00:15:37]}
{[%emt 00:01:03]} Bg7 {[%clk 00:13:49]} {[%emt 00:02:10]} 30. Ne6 {[%clk
00:08:01]} {[%emt 00:08:06]} Bxe6 {[%clk 00:13:46]} {[%emt 00:00:33]} 31. Rxd8
{[%emt 00:00:14]} Qxd8 {[%clk 00:11:32]} {[%emt 00:02:34]} 32. dxe6 {[%clk
00:06:27]} Rxe6 33. Qxb7 {[%emt 00:01:53]} Rb6 {[%clk 00:10:55]} {[%emt
00:00:57]} 34. Qxg7+ {[%clk 00:06:06]} {[%emt 00:00:50]} Kxg7 {[%clk 00:11:18]}
{[%emt 00:00:07]} 35. Bxe5+ {[%clk 00:06:33]} {[%emt 00:00:03]} Kg6 {[%emt
00:01:35]} 36. c5 {[%clk 00:04:34]} {[%emt 00:01:51]} Re6 {[%clk 00:05:55]}
{[%emt 00:05:25]} 37. Bd6 {[%clk 00:04:50]} {[%emt 00:00:14]} Qa5 {[%clk
00:04:28]} {[%emt 00:01:58]} 38. Rb1 {[%clk 00:03:06]} {[%emt 00:02:14]} Qd2
{[%clk 00:03:55]} {[%emt 00:01:02]} 39. Bf1 {[%clk 00:01:22]} {[%emt 00:02:15]}
e3 {[%clk 00:03:36]} {[%emt 00:00:49]} 40. fxe3 {[%clk 00:01:33]} {[%emt
00:00:20]} Qxe3+ {[%clk 00:03:48]} {[%emt 00:00:17]} 41. Kh2 {[%emt 00:00:55]}
Qf2+ {[%clk 00:01:09]} {[%emt 00:02:43]} 42. Bg2 {[%clk 00:01:38]} Re2 {[%clk
00:29:17]} {[%emt 00:02:48]} 43. Rg1 {[%emt 00:00:52]} f4 {[%clk 00:23:20]}
{[%emt 00:05:40]} 44. gxf4 {[%clk 00:27:53]} gxf4 {[%clk 00:21:56]} 45. Kh1
{[%clk 00:27:53]} Re1 {[%clk 00:21:56]} {[%emt 00:03:42]} 46. Rxe1 {[%clk
00:28:16]} Qxe1+ {[%clk 00:22:19]} {[%emt 00:00:14]} 47. Kh2 {[%clk 00:28:45]}
Qf2 {[%clk 00:22:31]} {[%emt 00:00:18]} 0-1

[Event "Masterklassen-Elit 2025"]
[Site "Uppsala, Sweden"]
[Date "2025.07.02"]
[Round "5.1"]
[White "Thorn, Eric"]
[Black "Olsson, William"]
[Result "0-1"]
[TimeControl "90 min for 40 move + 30 min with an increment of 30 sec starting move 1"]
[WhiteTitle "FM"]
[BlackTitle "IM"]
[WhiteFideId "1710729"]
[BlackFideId "1741721"]
[WhiteElo "2357"]
[BlackElo "2365"]

1. d4 {[%clk 01:29:32]} {[%emt 00:01:26]} d5 {[%clk 01:30:44]} {[%emt
00:00:17]} 2. c4 {[%clk 01:29:56]} {[%emt 00:00:05]} c6 {[%clk 01:31:11]}
{[%emt 00:00:04]} 3. Nf3 {[%clk 01:30:18]} {[%emt 00:00:07]} Nf6 {[%clk
01:31:38]} {[%emt 00:00:03]} 4. g3 {[%clk 01:30:39]} {[%emt 00:00:09]} dxc4
{[%clk 01:27:59]} {[%emt 00:04:10]} 5. Bg2 {[%clk 01:30:37]} {[%emt 00:00:31]}
b5 {[%clk 01:28:25]} {[%emt 00:00:05]} 6. O-O {[%clk 01:30:52]} {[%emt
00:00:14]} Bb7 {[%clk 01:28:04]} {[%emt 00:00:52]} 7. Ne5 {[%clk 01:30:23]}
{[%emt 00:00:59]} e6 {[%clk 01:28:26]} {[%emt 00:00:08]} 8. a4 {[%clk
01:30:44]} {[%emt 00:00:10]} a6 {[%clk 01:26:49]} {[%emt 00:02:07]} 9. b3
{[%clk 01:31:08]} {[%emt 00:00:05]} cxb3 {[%clk 01:25:36]} {[%emt 00:01:43]} 10.
Qxb3 {[%clk 01:31:05]} {[%emt 00:00:34]} Qxd4 {[%clk 01:20:49]} {[%emt
00:05:17]} 11. Bb2 {[%clk 01:31:23]} {[%emt 00:00:11]} Qb4 {[%clk 01:21:17]}
{[%emt 00:00:02]} 12. Qc2 {[%clk 01:31:46]} {[%emt 00:00:07]} Qc5 {[%clk
01:21:44]} {[%emt 00:00:04]} 13. Qd3 {[%clk 01:31:56]} {[%emt 00:00:19]} Qd6
{[%clk 01:21:53]} {[%emt 00:00:22]} 14. axb5 {[%clk 01:31:09]} {[%emt
00:01:17]} Qxd3 {[%clk 01:14:50]} {[%emt 00:07:33]} 15. Nxd3 {[%clk 01:31:29]}
{[%emt 00:00:09]} axb5 {[%clk 01:15:12]} {[%emt 00:00:08]} 16. Rxa8 {[%clk
01:31:54]} {[%emt 00:00:05]} Bxa8 {[%clk 01:15:38]} {[%emt 00:00:04]} 17. Nd2
{[%clk 01:32:19]} {[%emt 00:00:05]} Bb7 {[%clk 01:04:42]} {[%emt 00:11:27]} 18.
Ra1 {[%clk 01:32:20]} {[%emt 00:00:28]} Ba6 {[%clk 00:58:24]} {[%emt 00:06:49]}
19. Be5 {[%clk 01:03:45]} {[%emt 00:29:05]} Nfd7 {[%clk 00:58:47]} {[%emt
00:00:06]} 20. Bc7 {[%clk 01:04:09]} {[%emt 00:00:06]} Be7 {[%clk 00:41:05]}
{[%emt 00:18:12]} 21. Bxc6 {[%clk 00:40:13]} {[%emt 00:24:27]} Nxc6 {[%clk
00:40:58]} {[%emt 00:00:37]} 22. Rxa6 {[%clk 00:40:38]} {[%emt 00:00:05]} Nd8
{[%clk 00:41:20]} {[%emt 00:00:07]} 23. Bf4 {[%clk 00:35:47]} {[%emt 00:05:22]}
Nf6 {[%clk 00:33:33]} {[%emt 00:08:16]} 24. e4 {[%clk 00:23:16]} {[%emt
00:13:01]} O-O {[%clk 00:31:26]} {[%emt 00:02:36]} 25. Rb6 {[%clk 00:23:41]}
{[%emt 00:00:07]} h6 {[%clk 00:31:06]} {[%emt 00:00:50]} 26. Kf1 {[%clk
00:18:07]} {[%emt 00:06:04]} g5 {[%clk 00:21:38]} {[%emt 00:09:58]} 27. Bc7
{[%clk 00:09:48]} {[%emt 00:08:48]} Ne8 {[%clk 00:17:00]} {[%emt 00:05:08]} 28.
Bxd8 {[%clk 00:07:14]} {[%emt 00:03:05]} Bxd8 {[%clk 00:17:28]} {[%emt
00:00:01]} 29. Rxb5 {[%clk 00:07:36]} {[%emt 00:00:08]} Nd6 {[%clk 00:17:47]}
{[%emt 00:00:11]} 30. Rc5 {[%clk 00:06:33]} {[%emt 00:01:32]} Be7 {[%clk
00:14:23]} {[%emt 00:03:55]} 31. Rc7 {[%clk 00:06:05]} {[%emt 00:00:58]} Re8
{[%clk 00:14:45]} {[%emt 00:00:08]} 32. e5 {[%clk 00:04:42]} {[%emt 00:01:54]}
Nb5 {[%clk 00:15:10]} {[%emt 00:00:05]} 33. Rb7 {[%clk 00:04:20]} {[%emt
00:00:52]} Nc3 {[%clk 00:14:45]} {[%emt 00:00:55]} 34. Nc4 {[%clk 00:02:56]}
{[%emt 00:01:53]} Nd5 {[%clk 00:14:58]} {[%emt 00:00:17]} 35. Nb6 {[%clk
00:01:50]} {[%emt 00:01:37]} Rd8 {[%clk 00:10:30]} {[%emt 00:04:58]} 36. Nxd5
{[%clk 00:01:52]} {[%emt 00:00:28]} Rxd5 {[%clk 00:10:58]} {[%emt 00:00:01]} 37.
Ke2 {[%clk 00:02:12]} {[%emt 00:00:10]} Bf8 {[%clk 00:09:55]} {[%emt 00:01:33]}
38. Rb8 {[%clk 00:02:18]} {[%emt 00:00:25]} Kg7 {[%clk 00:09:58]} {[%emt
00:00:27]} 39. Rc8 {[%clk 00:01:44]} {[%emt 00:01:04]} Be7 {[%clk 00:08:42]}
{[%emt 00:01:45]} 40. Ke3 {[%clk 00:00:50]} {[%emt 00:01:24]} Bd8 {[%clk
00:07:46]} {[%emt 00:01:27]} 41. Ke4 {[%clk 00:23:37]} {[%emt 00:07:41]} Bb6
{[%clk 00:29:43]} {[%emt 00:08:34]} 42. Rc4 {[%clk 00:24:00]} {[%emt 00:00:06]}
Ra5 {[%clk 00:28:00]} {[%emt 00:02:14]} 43. Rb4 {[%clk 00:20:20]} {[%emt
00:04:09]} Ba7 {[%clk 00:28:00]} {[%emt 00:00:31]} 44. f4 {[%clk 00:15:00]}
{[%emt 00:05:49]} Ra2 {[%clk 00:23:40]} {[%emt 00:04:51]} 45. Rb2 {[%clk
00:15:20]} {[%emt 00:00:10]} Ra4+ {[%clk 00:21:07]} {[%emt 00:03:03]} 46. Rb4
{[%clk 00:15:28]} {[%emt 00:00:22]} Ra3 {[%clk 00:20:48]} {[%emt 00:00:49]} 47.
h3 {[%clk 00:13:39]} {[%emt 00:02:19]} Bg1 {[%clk 00:19:23]} {[%emt 00:01:56]}
48. Rb2 {[%clk 00:11:20]} {[%emt 00:02:48]} Kg6 {[%clk 00:15:59]} {[%emt
00:03:53]} 49. Rg2 {[%clk 00:06:40]} {[%emt 00:05:11]} Ba7 {[%clk 00:15:36]}
{[%emt 00:00:53]} 50. Rb2 {[%clk 00:06:22]} {[%emt 00:00:48]} Bg1 {[%clk
00:15:08]} {[%emt 00:00:58]} 51. Rg2 {[%clk 00:06:28]} {[%emt 00:00:23]} Bb6
{[%clk 00:14:46]} {[%emt 00:00:52]} 52. Rb2 {[%clk 00:05:53]} {[%emt 00:01:05]}
Ba7 {[%clk 00:15:09]} {[%emt 00:00:08]} 53. Rb7 {[%clk 00:04:27]} {[%emt
00:01:56]} Bg1 {[%clk 00:11:21]} {[%emt 00:04:19]} 54. Rb2 {[%clk 00:04:50]}
{[%emt 00:00:07]} Rc3 {[%clk 00:11:36]} {[%emt 00:00:14]} 55. Rg2 {[%clk
00:04:19]} {[%emt 00:01:01]} Ba7 {[%clk 00:11:24]} {[%emt 00:00:42]} 56. Ra2
{[%clk 00:03:49]} {[%emt 00:01:00]} Bb6 {[%clk 00:09:53]} {[%emt 00:02:01]} 57.
Rb2 {[%clk 00:04:09]} {[%emt 00:00:10]} Rc4+ {[%clk 00:10:04]} {[%emt
00:00:19]} 58. Kf3 {[%clk 00:04:33]} {[%emt 00:00:05]} Bg1 {[%clk 00:08:11]}
{[%emt 00:02:23]} 59. Rg2 {[%clk 00:04:22]} {[%emt 00:00:42]} Bd4 {[%clk
00:08:26]} {[%emt 00:00:15]} 60. Re2 {[%clk 00:03:06]} {[%emt 00:01:46]} Bb6
{[%clk 00:07:27]} {[%emt 00:01:29]} 61. Rb2 {[%clk 00:03:10]} {[%emt 00:00:26]}
Rc3 {[%clk 00:04:00]} {[%emt 00:03:58]} 62. Ke4 {[%clk 00:02:14]} {[%emt
00:01:25]} Bg1 {[%clk 00:03:48]} {[%emt 00:00:42]} 63. Rg2 {[%clk 00:02:29]}
{[%emt 00:00:14]} Bc5 {[%clk 00:03:43]} {[%emt 00:00:36]} 64. Nxc5 {[%clk
00:01:04]} {[%emt 00:01:56]} Rxc5 {[%clk 00:04:11]} {[%emt 00:00:02]} 65. fxg5
{[%clk 00:00:41]} {[%emt 00:00:52]} hxg5 {[%clk 00:03:54]} {[%emt 00:00:47]} 66.
Rf2 {[%clk 00:01:01]} {[%emt 00:00:11]} Rc1 {[%clk 00:03:51]} {[%emt 00:00:32]}
67. h4 {[%clk 00:00:58]} {[%emt 00:00:33]} gxh4 {[%clk 00:03:59]} {[%emt
00:00:22]} 68. gxh4 {[%clk 00:01:23]} {[%emt 00:00:05]} Rc4+ {[%clk 00:04:26]}
{[%emt 00:00:03]} 69. Ke3 {[%clk 00:01:25]} {[%emt 00:00:28]} Rxh4 {[%clk
00:04:38]} {[%emt 00:00:18]} 70. Rg2+ {[%clk 00:01:27]} {[%emt 00:00:28]} Kh7
{[%clk 00:04:07]} {[%emt 00:01:01]} 71. Rf2 {[%clk 00:01:11]} {[%emt 00:00:46]}
Kg7 {[%clk 00:04:23]} {[%emt 00:00:13]} 72. Rg2+ {[%clk 00:01:25]} {[%emt
00:00:17]} Kf8 {[%clk 00:04:49]} {[%emt 00:00:05]} 73. Rg1 {[%clk 00:01:02]}
{[%emt 00:00:52]} Rh6 {[%clk 00:04:23]} {[%emt 00:00:54]} 74. Rg2 {[%clk
00:00:42]} {[%emt 00:00:51]} Rg6 {[%clk 00:04:45]} {[%emt 00:00:09]} 75. Rxg6
{[%clk 00:00:43]} {[%emt 00:00:30]} fxg6 {[%clk 00:05:09]} {[%emt 00:00:05]} 76.
Kf4 {[%clk 00:01:10]} {[%emt 00:00:03]} Kg8 {[%clk 00:05:32]} {[%emt 00:00:06]}
77. Kg4 {[%clk 00:00:34]} {[%emt 00:01:07]} Kh7 {[%clk 00:05:58]} {[%emt
00:00:04]} 78. Kf4 {[%clk 00:00:31]} {[%emt 00:00:34]} Kh6 {[%clk 00:06:23]}
{[%emt 00:00:04]} 79. Kg4 {[%clk 00:00:40]} {[%emt 00:00:21]} g5 {[%clk
00:06:47]} {[%emt 00:00:06]} 80. Kg3 {[%clk 00:00:33]} {[%emt 00:00:37]} Kh5
{[%clk 00:07:12]} {[%emt 00:00:04]} 81. Kh3 {[%clk 00:00:32]} {[%emt 00:00:32]}
g4+ {[%clk 00:07:35]} {[%emt 00:00:07]} 0-1